[Event "Titled Tuesday Blitz April 4 Early 2023"]
[White "Melikhov, Evgeny V."]
[Black "Taboas Rodriguez, Daniel"]
[WhiteFideId "4122046"]
[BlackFideId "2208466"]
[WhiteElo "2158"]
[BlackElo "2365"]
[Result "0-1"]
[Round "09"]
[TimeControl "180+2"]
[Date "2023.04.04"]
[WhiteClock "0:00:03"]
[BlackClock "0:01:09"]

1. d4 {[%clk 0:03:00]}  Nf6 {[%clk 0:02:53]} 2. c4 {[%clk 0:03:00]}  g6 {[%clk 0:02:51]} 3. Nc3 {[%clk 0:02:59]}  Bg7 {[%clk 0:02:51]} 4. e4 {[%clk 0:03:00]}  d6 {[%clk 0:02:51]} 5. f3 {[%clk 0:02:59]}  O-O {[%clk 0:02:52]} 6. Be3 {[%clk 0:02:59]}  c5 {[%clk 0:02:52]} 7. Nge2 {[%clk 0:02:58]}  Nc6 {[%clk 0:02:52]} 8. d5 {[%clk 0:02:57]}  Ne5 {[%clk 0:02:52]} 9. Ng3 {[%clk 0:02:57]}  a6 {[%clk 0:02:51]} 10. a4 {[%clk 0:02:54]}  Bd7 {[%clk 0:02:51]} 11. Be2 {[%clk 0:02:42]}  b5 {[%clk 0:02:49]} 12. b3 {[%clk 0:02:32]}  bxc4 {[%clk 0:02:42]} 13. bxc4 {[%clk 0:02:32]}  Ne8 {[%clk 0:02:37]} 14. Ra3 {[%clk 0:02:24]}  h5 {[%clk 0:02:15]} 15. O-O {[%clk 0:02:21]}  h4 {[%clk 0:02:15]} 16. Nh1 {[%clk 0:02:21]}  f5 {[%clk 0:02:07]} 17. Bg5 {[%clk 0:02:07]}  h3 {[%clk 0:02:02]} 18. Nf2 {[%clk 0:01:59]}  hxg2 {[%clk 0:02:02]} 19. Kxg2 {[%clk 0:01:59]}  Nf6 {[%clk 0:01:58]} 20. f4 {[%clk 0:01:28]}  Nf7 {[%clk 0:01:51]} 21. Bf3 {[%clk 0:01:08]}  Nxg5 {[%clk 0:01:47]} 22. fxg5 {[%clk 0:01:08]}  Nxe4 {[%clk 0:01:46]} 23. Nfxe4 {[%clk 0:00:53]}  fxe4 {[%clk 0:01:44]} 24. Bxe4 {[%clk 0:00:53]}  Rxf1 {[%clk 0:01:22]} 25. Qxf1 {[%clk 0:00:51]}  Qa5 {[%clk 0:01:23]} 26. Bxg6 {[%clk 0:00:34]}  Rf8 {[%clk 0:01:22]} 27. Qd3 {[%clk 0:00:33]}  Qb4 {[%clk 0:01:20]} 28. Ne2 {[%clk 0:00:25]}  Qe1 {[%clk 0:01:12]} 29. Ng3 {[%clk 0:00:03]}  Rf2# {[%clk 0:01:09]} 0-1


[Site "https://www.chess.com"]

[Event "Titled Tuesday Blitz April 4 Early 2023"]
[White "Jimenez Jimenez, Leandro"]
[Black "Bilan, Danila"]
[WhiteFideId "6415253"]
[BlackFideId "24161918"]
[WhiteElo "2263"]
[BlackElo "2182"]
[Result "0-1"]
[Round "09"]
[TimeControl "180+2"]
[Date "2023.04.04"]
[WhiteClock "0:00:08"]
[BlackClock "0:00:05"]

1. d4 {[%clk 0:03:00]}  d5 {[%clk 0:02:57]} 2. c4 {[%clk 0:03:01]}  c6 {[%clk 0:02:56]} 3. cxd5 {[%clk 0:03:01]}  cxd5 {[%clk 0:02:57]} 4. Nc3 {[%clk 0:03:02]}  Nf6 {[%clk 0:02:54]} 5. Nf3 {[%clk 0:03:02]}  Nc6 {[%clk 0:02:54]} 6. Bf4 {[%clk 0:03:03]}  Bf5 {[%clk 0:02:54]} 7. Rc1 {[%clk 0:03:02]}  Qb6 {[%clk 0:02:39]} 8. e3 {[%clk 0:02:36]}  Qxb2 {[%clk 0:02:16]} 9. Nb5 {[%clk 0:01:53]}  e5 {[%clk 0:02:11]} 10. dxe5 {[%clk 0:01:46]}  Bb4+ {[%clk 0:02:06]} 11. Nd2 {[%clk 0:01:43]}  Ne4 {[%clk 0:01:50]} 12. Nd6+ {[%clk 0:01:38]}  Bxd6 {[%clk 0:01:06]} 13. Nxe4 {[%clk 0:01:24]}  Bb4+ {[%clk 0:00:59]} 14. Nd2 {[%clk 0:01:23]}  O-O {[%clk 0:00:47]} 15. Be2 {[%clk 0:00:46]}  Nxe5 {[%clk 0:00:20]} 16. Bxe5 {[%clk 0:00:44]}  Qxe5 {[%clk 0:00:16]} 17. O-O {[%clk 0:00:43]}  Ba3 {[%clk 0:00:14]} 18. Nf3 {[%clk 0:00:37]}  Qd6 {[%clk 0:00:06]} 19. Rc3 {[%clk 0:00:30]}  Bb4 {[%clk 0:00:06]} 20. Rb3 {[%clk 0:00:30]}  Rfc8 {[%clk 0:00:05]} 21. Nd4 {[%clk 0:00:30]}  Bd7 {[%clk 0:00:03]} 22. Qb1 {[%clk 0:00:21]}  a5 {[%clk 0:00:04]} 23. a3 {[%clk 0:00:20]}  Bxa3 {[%clk 0:00:04]} 24. Rxb7 {[%clk 0:00:18]}  Bb4 {[%clk 0:00:04]} 25. Bd3 {[%clk 0:00:16]}  g6 {[%clk 0:00:04]} 26. Rc1 {[%clk 0:00:14]}  Rab8 {[%clk 0:00:03]} 27. Rxb8 {[%clk 0:00:13]}  Rxb8 {[%clk 0:00:04]} 28. Qc2 {[%clk 0:00:12]}  Rd8 {[%clk 0:00:02]} 29. Rb1 {[%clk 0:00:10]}  Rc8 {[%clk 0:00:02]} 30. Qb2 {[%clk 0:00:09]}  Qc5 {[%clk 0:00:03]} 31. h3 {[%clk 0:00:08]}  Qc3 {[%clk 0:00:03]} 32. Qa2 {[%clk 0:00:07]}  Qxd3 {[%clk 0:00:03]} 33. Ra1 {[%clk 0:00:06]}  Qc4 {[%clk 0:00:03]} 34. Qb1 {[%clk 0:00:05]}  Bc3 {[%clk 0:00:03]} 35. Ra2 {[%clk 0:00:05]}  Bxd4 {[%clk 0:00:04]} 36. exd4 {[%clk 0:00:05]}  Qc1+ {[%clk 0:00:04]} 37. Qxc1 {[%clk 0:00:04]}  Rxc1+ {[%clk 0:00:05]} 38. Kh2 {[%clk 0:00:05]}  a4 {[%clk 0:00:06]} 39. Rb2 {[%clk 0:00:05]}  a3 {[%clk 0:00:06]} 40. Rb7 {[%clk 0:00:06]}  a2 {[%clk 0:00:05]} 41. Rxd7 {[%clk 0:00:06]}  a1=Q {[%clk 0:00:06]} 42. Rd8+ {[%clk 0:00:07]}  Kg7 {[%clk 0:00:06]} 43. Rxd5 {[%clk 0:00:08]}  Qb1 {[%clk 0:00:05]} 0-1


[Site "https://www.chess.com"]

[Event "Titled Tuesday Blitz April 4 Early 2023"]
[White "Sharapov, Evgeny"]
[Black "Manon-og, Ramon Jr."]
[WhiteFideId "14103133"]
[BlackFideId "5200776"]
[WhiteElo "2367"]
[BlackElo "2387"]
[Result "1-0"]
[Round "09"]
[TimeControl "180+2"]
[Date "2023.04.04"]
[WhiteClock "0:00:09"]
[BlackClock "0:00:01"]

1. e4 {[%clk 0:02:59]}  c5 {[%clk 0:03:00]} 2. Nf3 {[%clk 0:02:59]}  d6 {[%clk 0:03:00]} 3. d4 {[%clk 0:02:59]}  cxd4 {[%clk 0:03:01]} 4. Nxd4 {[%clk 0:02:59]}  Nf6 {[%clk 0:03:02]} 5. f3 {[%clk 0:02:59]}  a6 {[%clk 0:03:00]} 6. c4 {[%clk 0:02:59]}  e6 {[%clk 0:02:58]} 7. Nc3 {[%clk 0:02:59]}  Be7 {[%clk 0:02:59]} 8. Be3 {[%clk 0:03:00]}  O-O {[%clk 0:02:59]} 9. Be2 {[%clk 0:03:00]}  Nc6 {[%clk 0:02:54]} 10. O-O {[%clk 0:03:00]}  Bd7 {[%clk 0:02:51]} 11. Qd2 {[%clk 0:03:00]}  Rc8 {[%clk 0:02:51]} 12. Rac1 {[%clk 0:02:59]}  Re8 {[%clk 0:02:47]} 13. Rfd1 {[%clk 0:02:59]}  Ne5 {[%clk 0:02:39]} 14. b3 {[%clk 0:02:58]}  Qa5 {[%clk 0:02:30]} 15. Nd5 {[%clk 0:02:57]}  Qxd2 {[%clk 0:02:27]} 16. Nxe7+ {[%clk 0:02:57]}  Rxe7 {[%clk 0:02:27]} 17. Bxd2 {[%clk 0:02:57]}  d5 {[%clk 0:02:17]} 18. cxd5 {[%clk 0:02:54]}  exd5 {[%clk 0:02:18]} 19. Rxc8+ {[%clk 0:02:49]}  Bxc8 {[%clk 0:02:19]} 20. Rc1 {[%clk 0:02:42]}  Re8 {[%clk 0:02:12]} 21. exd5 {[%clk 0:02:40]}  Nxd5 {[%clk 0:02:13]} 22. Bf1 {[%clk 0:02:35]}  h6 {[%clk 0:02:03]} 23. Rc5 {[%clk 0:02:25]}  Rd8 {[%clk 0:01:42]} 24. Rc1 {[%clk 0:02:10]}  Ng6 {[%clk 0:01:40]} 25. Ba5 {[%clk 0:02:03]}  b6 {[%clk 0:01:32]} 26. Nc6 {[%clk 0:02:02]}  Re8 {[%clk 0:01:29]} 27. Bd2 {[%clk 0:02:00]}  Bb7 {[%clk 0:01:17]} 28. Nb4 {[%clk 0:01:54]}  Ndf4 {[%clk 0:01:11]} 29. Re1 {[%clk 0:01:44]}  Rd8 {[%clk 0:00:59]} 30. Be3 {[%clk 0:01:29]}  b5 {[%clk 0:00:49]} 31. g3 {[%clk 0:01:26]}  Ne6 {[%clk 0:00:47]} 32. f4 {[%clk 0:01:24]}  Nef8 {[%clk 0:00:39]} 33. Nd3 {[%clk 0:01:19]}  Rc8 {[%clk 0:00:37]} 34. Nc5 {[%clk 0:01:18]}  Rc7 {[%clk 0:00:36]} 35. Nxb7 {[%clk 0:01:17]}  Rxb7 {[%clk 0:00:36]} 36. Rc1 {[%clk 0:01:15]}  Ne7 {[%clk 0:00:29]} 37. Bg2 {[%clk 0:01:11]}  Rd7 {[%clk 0:00:29]} 38. Bc5 {[%clk 0:01:06]}  Ne6 {[%clk 0:00:28]} 39. Be3 {[%clk 0:00:57]}  Nf5 {[%clk 0:00:25]} 40. Bf2 {[%clk 0:00:42]}  Rd2 {[%clk 0:00:25]} 41. a4 {[%clk 0:00:39]}  Ned4 {[%clk 0:00:21]} 42. Rc8+ {[%clk 0:00:36]}  Kh7 {[%clk 0:00:21]} 43. Be4 {[%clk 0:00:32]}  g6 {[%clk 0:00:16]} 44. Rc7 {[%clk 0:00:24]}  Kg7 {[%clk 0:00:16]} 45. Ra7 {[%clk 0:00:22]}  Nxb3 {[%clk 0:00:12]} 46. Rxa6 {[%clk 0:00:17]}  bxa4 {[%clk 0:00:12]} 47. Rxa4 {[%clk 0:00:17]}  Rd1+ {[%clk 0:00:12]} 48. Kg2 {[%clk 0:00:16]}  Nd2 {[%clk 0:00:13]} 49. Bxf5 {[%clk 0:00:13]}  gxf5 {[%clk 0:00:14]} 50. Rd4 {[%clk 0:00:13]}  Kg6 {[%clk 0:00:05]} 51. Be3 {[%clk 0:00:10]}  Re1 {[%clk 0:00:05]} 52. Bxd2 {[%clk 0:00:10]}  Re2+ {[%clk 0:00:06]} 53. Kg1 {[%clk 0:00:10]}  h5 {[%clk 0:00:06]} 54. Rd6+ {[%clk 0:00:08]}  Kh7 {[%clk 0:00:06]} 55. Bc3 {[%clk 0:00:08]}  Rc2 {[%clk 0:00:05]} 56. Be5 {[%clk 0:00:07]}  Rc1+ {[%clk 0:00:05]} 57. Kg2 {[%clk 0:00:08]}  Rc2+ {[%clk 0:00:06]} 58. Kh3 {[%clk 0:00:08]}  Rc5 {[%clk 0:00:04]} 59. Rf6 {[%clk 0:00:08]}  Kg8 {[%clk 0:00:04]} 60. Rxf5 {[%clk 0:00:08]}  Rb5 {[%clk 0:00:02]} 61. Rg5+ {[%clk 0:00:07]}  Kf8 {[%clk 0:00:02]} 62. Kh4 {[%clk 0:00:07]}  Ke8 {[%clk 0:00:02]} 63. Kxh5 {[%clk 0:00:08]}  Rb6 {[%clk 0:00:02]} 64. h4 {[%clk 0:00:08]}  Rb3 {[%clk 0:00:02]} 65. Kg4 {[%clk 0:00:08]}  Kd7 {[%clk 0:00:02]} 66. h5 {[%clk 0:00:08]}  Rb1 {[%clk 0:00:02]} 67. h6 {[%clk 0:00:09]}  Rh1 {[%clk 0:00:01]} 68. Rh5 {[%clk 0:00:09]} 1-0


[Site "https://www.chess.com"]

[Event "Titled Tuesday Blitz April 4 Early 2023"]
[White "Staudenhocker43"]
[Black "crosky"]
[WhiteElo "2533"]
[BlackElo "2368"]
[Result "1-0"]
[Round "09"]
[TimeControl "180+2"]
[Date "2023.04.04"]
[WhiteClock "0:01:44"]
[BlackClock "0:00:01"]

1. Nf3 {[%clk 0:03:00]}  Nf6 {[%clk 0:02:59]} 2. b3 {[%clk 0:03:00]}  g6 {[%clk 0:02:51]} 3. Bb2 {[%clk 0:02:59]}  Bg7 {[%clk 0:02:51]} 4. c4 {[%clk 0:02:59]}  O-O {[%clk 0:02:51]} 5. g3 {[%clk 0:02:59]}  c6 {[%clk 0:02:34]} 6. Bg2 {[%clk 0:02:59]}  d5 {[%clk 0:02:35]} 7. O-O {[%clk 0:02:59]}  Bf5 {[%clk 0:02:31]} 8. d4 {[%clk 0:02:54]}  Ne4 {[%clk 0:02:27]} 9. Nbd2 {[%clk 0:02:50]}  Nd7 {[%clk 0:02:18]} 10. Rc1 {[%clk 0:02:37]}  Ndf6 {[%clk 0:02:04]} 11. Ne5 {[%clk 0:02:29]}  Nxd2 {[%clk 0:02:00]} 12. Qxd2 {[%clk 0:02:30]}  Ne4 {[%clk 0:01:58]} 13. Qf4 {[%clk 0:02:22]}  f6 {[%clk 0:01:36]} 14. Nd3 {[%clk 0:02:20]}  Rc8 {[%clk 0:01:25]} 15. Qe3 {[%clk 0:02:15]}  Ng5 {[%clk 0:00:20]} 16. cxd5 {[%clk 0:02:01]}  cxd5 {[%clk 0:00:20]} 17. Rxc8 {[%clk 0:02:01]}  Bxc8 {[%clk 0:00:21]} 18. Rc1 {[%clk 0:02:00]}  Nf7 {[%clk 0:00:13]} 19. Nf4 {[%clk 0:01:52]}  e5 {[%clk 0:00:01]} 20. Nxd5 {[%clk 0:01:47]}  Be6 {[%clk 0:00:01]} 21. Nc7 {[%clk 0:01:44]} 1-0


[Site "https://www.chess.com"]

[Event "Titled Tuesday Blitz April 4 Early 2023"]
[White "HamedWafa4"]
[Black "Yu, Jason"]
[BlackFideId "30907624"]
[WhiteElo "2367"]
[BlackElo "2491"]
[Result "0-1"]
[Round "09"]
[TimeControl "180+2"]
[Date "2023.04.04"]
[WhiteClock "0:00:02"]
[BlackClock "0:00:28"]

1. e4 {[%clk 0:03:00]}  e5 {[%clk 0:03:00]} 2. Nf3 {[%clk 0:02:59]}  Nc6 {[%clk 0:03:00]} 3. Bb5 {[%clk 0:02:59]}  a6 {[%clk 0:03:00]} 4. Ba4 {[%clk 0:02:58]}  Nf6 {[%clk 0:03:01]} 5. O-O {[%clk 0:02:58]}  b5 {[%clk 0:03:01]} 6. Bb3 {[%clk 0:02:57]}  Bc5 {[%clk 0:03:02]} 7. d3 {[%clk 0:02:56]}  h6 {[%clk 0:03:01]} 8. Nc3 {[%clk 0:02:55]}  d6 {[%clk 0:03:01]} 9. a4 {[%clk 0:02:54]}  Rb8 {[%clk 0:02:58]} 10. axb5 {[%clk 0:02:53]}  axb5 {[%clk 0:02:59]} 11. Ne2 {[%clk 0:02:49]}  O-O {[%clk 0:02:56]} 12. Ng3 {[%clk 0:02:39]}  Be6 {[%clk 0:02:55]} 13. c3 {[%clk 0:02:30]}  b4 {[%clk 0:02:51]} 14. Bc2 {[%clk 0:02:26]}  b3 {[%clk 0:02:44]} 15. Bb1 {[%clk 0:02:24]}  d5 {[%clk 0:02:44]} 16. d4 {[%clk 0:01:53]}  dxe4 {[%clk 0:02:32]} 17. Nxe4 {[%clk 0:01:52]}  Bb6 {[%clk 0:02:06]} 18. Nxf6+ {[%clk 0:01:45]}  Qxf6 {[%clk 0:02:03]} 19. Be4 {[%clk 0:01:46]}  Bc4 {[%clk 0:01:46]} 20. Re1 {[%clk 0:01:21]}  exd4 {[%clk 0:01:44]} 21. Bxc6 {[%clk 0:01:11]}  dxc3 {[%clk 0:01:34]} 22. bxc3 {[%clk 0:00:31]}  Qxc6 {[%clk 0:01:33]} 23. Ne5 {[%clk 0:00:28]}  Bxf2+ {[%clk 0:01:04]} 24. Kxf2 {[%clk 0:00:26]}  Qc5+ {[%clk 0:00:37]} 25. Qd4 {[%clk 0:00:25]}  Qxd4+ {[%clk 0:00:38]} 26. cxd4 {[%clk 0:00:26]}  b2 {[%clk 0:00:39]} 27. Rb1 {[%clk 0:00:18]}  bxc1=Q {[%clk 0:00:39]} 28. Rbxc1 {[%clk 0:00:18]}  Rb2+ {[%clk 0:00:36]} 29. Kg3 {[%clk 0:00:14]}  Bd5 {[%clk 0:00:36]} 30. Nf3 {[%clk 0:00:14]}  c6 {[%clk 0:00:36]} 31. Re7 {[%clk 0:00:14]}  Ra8 {[%clk 0:00:34]} 32. Nh4 {[%clk 0:00:13]}  Raa2 {[%clk 0:00:31]} 33. Rf1 {[%clk 0:00:12]}  f6 {[%clk 0:00:31]} 34. Re8+ {[%clk 0:00:11]}  Kf7 {[%clk 0:00:31]} 35. Rc8 {[%clk 0:00:10]}  g5 {[%clk 0:00:31]} 36. Rc7+ {[%clk 0:00:07]}  Ke6 {[%clk 0:00:27]} 37. Ng6 {[%clk 0:00:03]}  Rxg2+ {[%clk 0:00:27]} 38. Kh3 {[%clk 0:00:04]}  Rxh2+ {[%clk 0:00:27]} 39. Kg4 {[%clk 0:00:02]}  Rag2# {[%clk 0:00:28]} 0-1


[Site "https://www.chess.com"]

[Event "Titled Tuesday Blitz April 4 Early 2023"]
[White "Golubev, Mikhail"]
[Black "Polanco Nunez, Yoel Estarling"]
[WhiteFideId "14100983"]
[BlackFideId "6401783"]
[WhiteElo "2374"]
[BlackElo "2132"]
[Result "0-1"]
[Round "09"]
[TimeControl "180+2"]
[Date "2023.04.04"]
[WhiteClock "0:00:09"]
[BlackClock "0:00:42"]

1. e4 {[%clk 0:03:00]}  c5 {[%clk 0:02:48]} 2. Nf3 {[%clk 0:02:59]}  d6 {[%clk 0:02:48]} 3. d4 {[%clk 0:02:58]}  cxd4 {[%clk 0:02:49]} 4. Nxd4 {[%clk 0:02:58]}  Nf6 {[%clk 0:02:49]} 5. Nc3 {[%clk 0:02:58]}  a6 {[%clk 0:02:50]} 6. Bc4 {[%clk 0:02:58]}  e6 {[%clk 0:02:50]} 7. Bb3 {[%clk 0:02:58]}  b5 {[%clk 0:02:50]} 8. O-O {[%clk 0:02:56]}  Be7 {[%clk 0:02:50]} 9. Qf3 {[%clk 0:02:55]}  Qc7 {[%clk 0:02:42]} 10. Qg3 {[%clk 0:02:53]}  O-O {[%clk 0:02:42]} 11. Bh6 {[%clk 0:02:52]}  Ne8 {[%clk 0:02:39]} 12. Rad1 {[%clk 0:02:48]}  Kh8 {[%clk 0:02:38]} 13. Be3 {[%clk 0:02:37]}  Nc6 {[%clk 0:02:34]} 14. Nxc6 {[%clk 0:01:33]}  Qxc6 {[%clk 0:02:34]} 15. a4 {[%clk 0:01:29]}  Bb7 {[%clk 0:02:27]} 16. axb5 {[%clk 0:01:26]}  axb5 {[%clk 0:02:27]} 17. f3 {[%clk 0:01:27]}  Nf6 {[%clk 0:02:14]} 18. e5 {[%clk 0:01:11]}  dxe5 {[%clk 0:02:04]} 19. Bg5 {[%clk 0:00:53]}  Qc5+ {[%clk 0:01:56]} 20. Kh1 {[%clk 0:00:52]}  Rfd8 {[%clk 0:01:50]} 21. Rde1 {[%clk 0:00:51]}  b4 {[%clk 0:01:42]} 22. Rxe5 {[%clk 0:00:45]}  Qb6 {[%clk 0:01:20]} 23. Na4 {[%clk 0:00:22]}  Qc6 {[%clk 0:01:09]} 24. Bxf6 {[%clk 0:00:11]}  gxf6 {[%clk 0:00:58]} 25. Rh5 {[%clk 0:00:09]}  Rg8 {[%clk 0:00:43]} 26. Qh4 {[%clk 0:00:09]}  Rg7 {[%clk 0:00:43]} 27. Qxb4 {[%clk 0:00:09]}  Bxb4 {[%clk 0:00:42]} 0-1


[Site "https://www.chess.com"]

[Event "Titled Tuesday Blitz April 4 Early 2023"]
[White "Fernandez Siles, Luis"]
[Black "Shapiro, Viktor"]
[WhiteFideId "2209420"]
[BlackFideId "4175700"]
[WhiteElo "2195"]
[BlackElo "2152"]
[Result "0-1"]
[Round "09"]
[TimeControl "180+2"]
[Date "2023.04.04"]
[WhiteClock "0:00:10"]
[BlackClock "0:01:10"]

1. d4 {[%clk 0:03:00]}  Nf6 {[%clk 0:03:00]} 2. c4 {[%clk 0:03:01]}  c5 {[%clk 0:03:00]} 3. d5 {[%clk 0:03:01]}  e6 {[%clk 0:03:01]} 4. Nc3 {[%clk 0:03:00]}  exd5 {[%clk 0:03:01]} 5. cxd5 {[%clk 0:03:01]}  Bd6 {[%clk 0:03:02]} 6. g3 {[%clk 0:02:52]}  Bc7 {[%clk 0:03:02]} 7. Bg2 {[%clk 0:02:52]}  d6 {[%clk 0:03:01]} 8. Nf3 {[%clk 0:02:51]}  a6 {[%clk 0:03:02]} 9. a4 {[%clk 0:02:51]}  O-O {[%clk 0:03:03]} 10. O-O {[%clk 0:02:50]}  Re8 {[%clk 0:03:03]} 11. Nd2 {[%clk 0:02:49]}  Nbd7 {[%clk 0:03:04]} 12. Nc4 {[%clk 0:02:45]}  Ne5 {[%clk 0:03:04]} 13. Nxe5 {[%clk 0:02:42]}  Rxe5 {[%clk 0:03:04]} 14. Bf4 {[%clk 0:02:41]}  Re8 {[%clk 0:03:04]} 15. Qd3 {[%clk 0:02:19]}  Rb8 {[%clk 0:03:02]} 16. Ne4 {[%clk 0:02:09]}  Bf5 {[%clk 0:02:55]} 17. Nxf6+ {[%clk 0:02:03]}  Qxf6 {[%clk 0:02:55]} 18. e4 {[%clk 0:02:03]}  Bd7 {[%clk 0:02:51]} 19. Rfe1 {[%clk 0:01:56]}  Qxb2 {[%clk 0:02:31]} 20. Bd2 {[%clk 0:01:09]}  Qf6 {[%clk 0:02:28]} 21. Bc3 {[%clk 0:01:09]}  Qg6 {[%clk 0:02:27]} 22. f4 {[%clk 0:01:08]}  h5 {[%clk 0:02:12]} 23. f5 {[%clk 0:01:08]}  Qh6 {[%clk 0:02:11]} 24. Bd2 {[%clk 0:01:00]}  Qf6 {[%clk 0:02:10]} 25. Bc3 {[%clk 0:01:00]}  Qg5 {[%clk 0:02:07]} 26. h4 {[%clk 0:00:49]}  Qe7 {[%clk 0:01:59]} 27. f6 {[%clk 0:00:47]}  gxf6 {[%clk 0:01:57]} 28. Qd2 {[%clk 0:00:41]}  Bd8 {[%clk 0:01:44]} 29. Rf1 {[%clk 0:00:19]}  f5 {[%clk 0:01:37]} 30. Qh6 {[%clk 0:00:18]}  f6 {[%clk 0:01:37]} 31. Qxh5 {[%clk 0:00:17]}  Qf7 {[%clk 0:01:36]} 32. Qh6 {[%clk 0:00:14]}  Qg7 {[%clk 0:01:29]} 33. Qf4 {[%clk 0:00:14]}  fxe4 {[%clk 0:01:18]} 34. Bxf6 {[%clk 0:00:09]}  Bxf6 {[%clk 0:01:18]} 35. Qxf6 {[%clk 0:00:10]}  Qxg3 {[%clk 0:01:10]} 0-1


[Site "https://www.chess.com"]

[Event "Titled Tuesday Blitz April 4 Early 2023"]
[White "Lach, Aleksandra"]
[Black "Arat, Ufuk Sezen"]
[WhiteFideId "1134299"]
[BlackFideId "6309089"]
[WhiteElo "2111"]
[BlackElo "2289"]
[Result "1-0"]
[Round "09"]
[TimeControl "180+2"]
[Date "2023.04.04"]
[WhiteClock "0:00:08"]
[BlackClock "0:00:03"]

1. c4 {[%clk 0:03:00]}  e5 {[%clk 0:02:53]} 2. g3 {[%clk 0:03:00]}  Nf6 {[%clk 0:02:53]} 3. Bg2 {[%clk 0:03:00]}  d5 {[%clk 0:02:53]} 4. cxd5 {[%clk 0:03:00]}  Nxd5 {[%clk 0:02:53]} 5. Nc3 {[%clk 0:03:01]}  Nb6 {[%clk 0:02:54]} 6. Nf3 {[%clk 0:02:58]}  Nc6 {[%clk 0:02:54]} 7. O-O {[%clk 0:02:57]}  Be7 {[%clk 0:02:55]} 8. d3 {[%clk 0:02:49]}  O-O {[%clk 0:02:55]} 9. a3 {[%clk 0:02:47]}  Be6 {[%clk 0:02:55]} 10. b4 {[%clk 0:02:47]}  f6 {[%clk 0:02:54]} 11. Bb2 {[%clk 0:02:44]}  Qd7 {[%clk 0:02:54]} 12. Ne4 {[%clk 0:02:23]}  a5 {[%clk 0:02:37]} 13. b5 {[%clk 0:02:20]}  Nd8 {[%clk 0:02:34]} 14. a4 {[%clk 0:02:19]}  c6 {[%clk 0:02:28]} 15. d4 {[%clk 0:01:58]}  Nc4 {[%clk 0:02:14]} 16. Bc3 {[%clk 0:01:58]}  cxb5 {[%clk 0:02:10]} 17. axb5 {[%clk 0:01:57]}  Qxb5 {[%clk 0:01:38]} 18. dxe5 {[%clk 0:01:57]}  Nxe5 {[%clk 0:01:34]} 19. Nd4 {[%clk 0:01:48]}  Qb6 {[%clk 0:01:11]} 20. Rb1 {[%clk 0:01:37]}  Qa6 {[%clk 0:01:11]} 21. Nb5 {[%clk 0:01:29]}  Rc8 {[%clk 0:01:03]} 22. Bxe5 {[%clk 0:01:22]}  fxe5 {[%clk 0:01:02]} 23. Ned6 {[%clk 0:01:14]}  Rc5 {[%clk 0:00:58]} 24. Be4 {[%clk 0:00:55]}  h6 {[%clk 0:00:29]} 25. Qd3 {[%clk 0:00:49]}  Nc6 {[%clk 0:00:25]} 26. Bh7+ {[%clk 0:00:25]}  Kh8 {[%clk 0:00:25]} 27. Rfd1 {[%clk 0:00:23]}  Nd4 {[%clk 0:00:21]} 28. Nxd4 {[%clk 0:00:19]}  Qxd3 {[%clk 0:00:21]} 29. Bxd3 {[%clk 0:00:19]}  exd4 {[%clk 0:00:22]} 30. Nxb7 {[%clk 0:00:19]}  Rc7 {[%clk 0:00:19]} 31. Nxa5 {[%clk 0:00:19]}  Ra8 {[%clk 0:00:18]} 32. Ra1 {[%clk 0:00:19]}  Rca7 {[%clk 0:00:18]} 33. Be4 {[%clk 0:00:15]}  Re8 {[%clk 0:00:18]} 34. Nc6 {[%clk 0:00:14]}  Rxa1 {[%clk 0:00:18]} 35. Rxa1 {[%clk 0:00:15]}  Bc5 {[%clk 0:00:19]} 36. Bf3 {[%clk 0:00:14]}  Bc4 {[%clk 0:00:18]} 37. Re1 {[%clk 0:00:13]}  Bb5 {[%clk 0:00:17]} 38. Rd1 {[%clk 0:00:10]}  Bxe2 {[%clk 0:00:15]} 39. Bxe2 {[%clk 0:00:10]}  Rxe2 {[%clk 0:00:16]} 40. Nxd4 {[%clk 0:00:10]}  Ra2 {[%clk 0:00:15]} 41. Kg2 {[%clk 0:00:10]}  Kh7 {[%clk 0:00:15]} 42. Kf3 {[%clk 0:00:11]}  h5 {[%clk 0:00:16]} 43. Ke3 {[%clk 0:00:11]}  Ra3+ {[%clk 0:00:16]} 44. Ke4 {[%clk 0:00:11]}  Ra4 {[%clk 0:00:16]} 45. f4 {[%clk 0:00:11]}  Ra2 {[%clk 0:00:16]} 46. h4 {[%clk 0:00:11]}  Ra3 {[%clk 0:00:16]} 47. Nf5 {[%clk 0:00:11]}  Ra7 {[%clk 0:00:13]} 48. Kf3 {[%clk 0:00:08]}  g6 {[%clk 0:00:13]} 49. Nd4 {[%clk 0:00:05]}  Rd7 {[%clk 0:00:13]} 50. Ke4 {[%clk 0:00:06]}  Re7+ {[%clk 0:00:11]} 51. Kd5 {[%clk 0:00:05]}  Ba7 {[%clk 0:00:11]} 52. Kd6 {[%clk 0:00:05]}  Re3 {[%clk 0:00:10]} 53. Ne6 {[%clk 0:00:05]}  Rxg3 {[%clk 0:00:09]} 54. Rb1 {[%clk 0:00:06]}  Rd3+ {[%clk 0:00:08]} 55. Ke5 {[%clk 0:00:05]}  Rd7 {[%clk 0:00:05]} 56. Nf8+ {[%clk 0:00:06]}  Kh6 {[%clk 0:00:05]} 57. Nxd7 {[%clk 0:00:07]}  Bf2 {[%clk 0:00:05]} 58. Ke6 {[%clk 0:00:07]}  Bxh4 {[%clk 0:00:05]} 59. Ne5 {[%clk 0:00:07]}  Bg3 {[%clk 0:00:05]} 60. Nf7+ {[%clk 0:00:07]}  Kg7 {[%clk 0:00:05]} 61. Ng5 {[%clk 0:00:07]}  Bxf4 {[%clk 0:00:06]} 62. Nf3 {[%clk 0:00:07]}  g5 {[%clk 0:00:05]} 63. Rg1 {[%clk 0:00:07]}  Kh6 {[%clk 0:00:05]} 64. Kf5 {[%clk 0:00:07]}  Be3 {[%clk 0:00:05]} 65. Rg2 {[%clk 0:00:07]}  g4 {[%clk 0:00:06]} 66. Ne5 {[%clk 0:00:07]}  Bd4 {[%clk 0:00:05]} 67. Nf7+ {[%clk 0:00:07]}  Kg7 {[%clk 0:00:06]} 68. Nd6 {[%clk 0:00:07]}  Kh6 {[%clk 0:00:06]} 69. Ne4 {[%clk 0:00:07]}  Be3 {[%clk 0:00:06]} 70. Rh2 {[%clk 0:00:06]}  Bg1 {[%clk 0:00:05]} 71. Rh1 {[%clk 0:00:07]}  Be3 {[%clk 0:00:06]} 72. Ng3 {[%clk 0:00:07]}  Bf2 {[%clk 0:00:04]} 73. Nxh5 {[%clk 0:00:07]}  g3 {[%clk 0:00:03]} 74. Nxg3+ {[%clk 0:00:07]}  Kg7 {[%clk 0:00:03]} 75. Ne4 {[%clk 0:00:07]}  Be3 {[%clk 0:00:03]} 76. Rh3 {[%clk 0:00:07]}  Bd4 {[%clk 0:00:03]} 77. Rd3 {[%clk 0:00:08]}  Bb6 {[%clk 0:00:03]} 78. Rd6 {[%clk 0:00:08]} 1-0


[Site "https://www.chess.com"]